fUST/lending_fUST_20250906
["ID","MTS","AMOUNT","RATE_DAILY","PERIOD"]
[383731981,1757103055168,-1666.92,0.00016712,2]
[383731983,1757103055177,-2180.69,0.00016712,2]
[383731985,1757103055187,-7203.67,0.00016712,2]
[383731987,1757103055197,-1225.97,0.00016712,2]
[383731989,1757103055206,-480.0,0.00016712,2]
[383731991,1757103055215,-1428.8,0.00016712,2]
[383731993,1757103055225,-1108.64,0.00016712,2]
[383731995,1757103055235,-865.75,0.00016712,2]
[383731997,1757103055245,-4093.04,0.00016712,2]
[383731999,1757103055255,-534.04,0.00016712,2]
[383732001,1757103055264,-611.61,0.00016712,2]
[383732003,1757103055273,-480.0,0.00016712,2]
[383732005,1757103055283,-555.37,0.00016712,2]
[383732007,1757103055292,-2005.54,0.00016712,2]
[383732009,1757103055302,-695.85,0.00016712,2]
[383732010,1757103055311,-641.0,0.00016712,2]
[383732012,1757103055321,-674.5,0.00016712,2]
[383732014,1757103055330,-2484.53,0.00016712,2]
[383732016,1757103055340,-1101.11,0.00016712,2]
[383732018,1757103055350,-698.74,0.00016712,2]
[383732020,1757103055360,-1021.02,0.00016712,2]
[383732022,1757103055369,-480.0,0.00016712,2]
[383732024,1757103055379,-489.39,0.00016712,2]
[383732026,1757103055388,-499.95,0.00016712,2]
[383732028,1757103055398,-751.81,0.00016712,2]
[383732030,1757103055407,-1850.07,0.00016712,2]
[383732032,1757103055417,-480.0,0.00016712,2]
[383732034,1757103055426,-480.0,0.00016712,2]
[383732036,1757103055436,-480.0,0.00016712,2]
[383732038,1757103055446,-689.34,0.00016712,2]
[383732039,1757103055455,-934.43,0.00016712,2]
[383732040,1757103055465,-2351.15,0.00016712,2]
[383732041,1757103055474,-1182.5,0.00016712,2]
[383732042,1757103055483,-2388.0,0.00016713,2]
[383732043,1757103055491,-500.0,0.00016784,2]
[383732044,1757103055500,-500.0,0.00016784,2]
[383732045,1757103055509,-500.0,0.00016792,2]
[383732046,1757103055518,-194.72792766,0.00016877,2]
[383732047,1757103055527,-864.0,0.00016905,2]
[383732048,1757103055536,-250.0,0.00016924,2]
[383732049,1757103055545,-3500.0,0.0001696,2]
[383732050,1757103055553,-12500.0,0.00016966,7]
[383732051,1757103055563,-300.0,0.00016973,2]
[383732052,1757103055571,-500.0,0.00016986,2]
[383732053,1757103055580,-12500.0,0.00016986,7]
[383732054,1757103055589,-706.16,0.00016986,2]
[383732055,1757103055598,-2216.68155098,0.00016986,7]
[383732056,1757103055607,-465.88,0.00016986,2]
[383732057,1757103055615,-482.0,0.00016986,2]
[383732058,1757103055624,-614.49,0.00016986,2]
[383732059,1757103055633,-151.0,0.00016986,2]
[383732067,1757103055733,-151.0,0.00016986,2]
[383732069,1757103055743,-589.91,0.00016986,2]
[383732071,1757103055753,-151.0,0.00016986,2]
[383732073,1757103055762,-151.0,0.00016986,2]
[383732075,1757103055771,-151.0,0.00016986,2]
[383732077,1757103055781,-480.0,0.00016986,2]
[383732079,1757103055790,-695.74,0.00016986,2]
[383732081,1757103055799,-513.79,0.00016986,2]
[383732083,1757103055809,-231.768692,0.00016986,2]
[383732085,1757103055818,-569.37,0.00016986,2]
[383732087,1757103055828,-818.23,0.00016986,2]
[383732089,1757103055837,-1090.3,0.00016986,2]
[383732091,1757103055846,-2838.89,0.00016986,2]
[383732093,1757103055856,-1570.51,0.00016986,2]
[383732095,1757103055865,-620.07,0.00016986,2]
[383732097,1757103055880,-641.06,0.00016986,2]
[383732099,1757103055889,-480.0,0.00016986,2]
[383732101,1757103055898,-480.0,0.00016986,2]
[383732103,1757103055908,-1179.32,0.00016986,2]
[383732105,1757103055918,-633.15,0.00016986,2]
[383732106,1757103055927,-701.9,0.00016986,2]
[383732108,1757103055937,-777.67,0.00016986,2]
[383732110,1757103055949,-3459.85,0.00016986,2]
[383732112,1757103055958,-666.07,0.00016986,2]
[383732114,1757103055968,-1435.86,0.00016986,2]
[383732116,1757103055977,-687.92,0.00016986,2]
[383732118,1757103055987,-626.27,0.00016986,2]
[383732120,1757103055996,-665.9,0.00016986,2]
[383732122,1757103056006,-640.34,0.00016986,2]
[383732124,1757103056016,-790.66,0.00016986,2]
[383732127,1757103056026,-1666.92,0.00016986,2]
[383732128,1757103056035,-2180.69,0.00016986,2]
[383732130,1757103056045,-7203.67,0.00016986,2]
[383732132,1757103056055,-1225.97,0.00016986,2]
[383732134,1757103056064,-480.0,0.00016986,2]
[383732136,1757103056074,-1428.8,0.00016986,2]
[383732138,1757103056084,-1108.64,0.00016986,2]
[383732140,1757103056094,-865.75,0.00016986,2]
[383732143,1757103056104,-4093.04,0.00016986,2]
[383732145,1757103056113,-534.04,0.00016986,2]
[383732146,1757103056123,-611.61,0.00016986,2]
[383732148,1757103056134,-480.0,0.00016986,2]
[383732150,1757103056143,-555.37,0.00016986,2]
[383732152,1757103056153,-2005.54,0.00016986,2]
[383732154,1757103056164,-695.85,0.00016986,2]
[383732157,1757103056174,-641.0,0.00016986,2]
[383732158,1757103056183,-674.5,0.00016986,2]
[383732160,1757103056193,-2484.53,0.00016986,2]
[383732162,1757103056203,-1101.11,0.00016986,2]
[383732164,1757103056212,-698.74,0.00016986,2]
[383732166,1757103056221,-1021.02,0.00016986,2]
[383732168,1757103056230,-480.0,0.00016986,2]
[383732170,1757103056239,-489.39,0.00016986,2]
[383732172,1757103056248,-499.95,0.00016986,2]
[383732174,1757103056258,-751.81,0.00016986,2]
[383732176,1757103056267,-1850.07,0.00016986,2]
[383732178,1757103056277,-480.0,0.00016986,2]
[383732180,1757103056286,-480.0,0.00016986,2]
[383732182,1757103056296,-480.0,0.00016986,2]
[383732184,1757103056305,-689.34,0.00016986,2]
[383732186,1757103056314,-934.43,0.00016986,2]
[383732188,1757103056323,-2351.15,0.00016986,2]
[383732190,1757103056332,-1182.5,0.00016986,2]
[383732192,1757103056341,-151.0,0.00016986,2]
[383732194,1757103056351,-160.0,0.0001699,7]
[383732196,1757103056360,-100624.15970958,0.00017,2]
[383732198,1757103056369,-203.18701864,0.00017,7]
[383732200,1757103056379,-417.15472785,0.00017,7]
[383732202,1757103056388,-530.48792916,0.00017,7]
[383732204,1757103056397,-160.0,0.00017,7]
[383732206,1757103056406,-203.635943,0.00017008,2]
[383732208,1757103056415,-203.635943,0.00017008,2]
[383732210,1757103056424,-203.635947,0.00017008,2]
[383732212,1757103056434,-12500.0,0.00017008,7]
[383732214,1757103056443,-260.0,0.00017022,2]
[383732216,1757103056453,-2000.0,0.00017156,2]
[383732218,1757103056462,-2403.9113331,0.00017258,2]
[383732220,1757103056471,-500.0,0.0001726,2]
[383732222,1757103056480,-706.16,0.0001726,2]
[383732224,1757103056489,-482.0,0.0001726,2]
[383732226,1757103056499,-614.49,0.0001726,2]
[383732228,1757103056508,-589.91,0.0001726,2]
[383732230,1757103056517,-480.0,0.0001726,2]
[383732232,1757103056527,-695.74,0.0001726,2]
[383732234,1757103056536,-513.79,0.0001726,2]
[383732236,1757103056546,-569.37,0.0001726,2]
[383732238,1757103056555,-818.23,0.0001726,2]
[383732240,1757103056564,-1090.3,0.0001726,2]
[383732242,1757103056574,-2838.89,0.0001726,2]
[383732244,1757103056583,-1570.51,0.0001726,2]
[383732246,1757103056592,-620.07,0.0001726,2]
[383732248,1757103056601,-641.06,0.0001726,2]
[383732250,1757103056611,-480.0,0.0001726,2]
[383732252,1757103056620,-480.0,0.0001726,2]
[383732254,1757103056629,-1179.32,0.0001726,2]
[383732256,1757103056639,-633.15,0.0001726,2]
[383732258,1757103056648,-701.9,0.0001726,2]
[383732260,1757103056657,-777.67,0.0001726,2]
[383732262,1757103056667,-3459.85,0.0001726,2]
[383732264,1757103056676,-666.07,0.0001726,2]
[383732266,1757103056685,-1435.86,0.0001726,2]
[383732268,1757103056694,-687.92,0.0001726,2]
[383732270,1757103056703,-626.27,0.0001726,2]
[383732272,1757103056712,-665.9,0.0001726,2]
[383732274,1757103056721,-640.34,0.0001726,2]
[383732276,1757103056731,-790.66,0.0001726,2]
[383732278,1757103056740,-1666.92,0.0001726,2]
[383732280,1757103056749,-2180.69,0.0001726,2]
[383732282,1757103056759,-7203.67,0.0001726,2]
[383732284,1757103056768,-1225.97,0.0001726,2]
[383732286,1757103056777,-480.0,0.0001726,2]
[383732288,1757103056786,-1428.8,0.0001726,2]
[383732290,1757103056796,-1108.64,0.0001726,2]
[383732292,1757103056805,-865.75,0.0001726,2]
[383732294,1757103056815,-4093.04,0.0001726,2]
[383732296,1757103056825,-534.04,0.0001726,2]
[383732298,1757103056835,-611.61,0.0001726,2]
[383732300,1757103056844,-480.0,0.0001726,2]
[383732302,1757103056856,-555.37,0.0001726,2]
[383732304,1757103056865,-2005.54,0.0001726,2]
[383732305,1757103056878,-695.85,0.0001726,2]
[383732307,1757103056888,-641.0,0.0001726,2]
[383732310,1757103056898,-674.5,0.0001726,2]
[383732312,1757103056907,-2484.53,0.0001726,2]
[383732313,1757103056919,-1101.11,0.0001726,2]
[383732316,1757103056930,-698.74,0.0001726,2]
[383732318,1757103056941,-1021.02,0.0001726,2]
[383732320,1757103056952,-480.0,0.0001726,2]
[383732322,1757103056962,-489.39,0.0001726,2]
[383732324,1757103056971,-499.95,0.0001726,2]
[383732326,1757103056980,-751.81,0.0001726,2]
[383732328,1757103056990,-1850.07,0.0001726,2]
[383732330,1757103056999,-480.0,0.0001726,2]
[383732332,1757103057008,-480.0,0.0001726,2]
[383732334,1757103057017,-689.34,0.0001726,2]
[383732336,1757103057027,-934.43,0.0001726,2]
[383732338,1757103057036,-2351.15,0.0001726,2]
[383732340,1757103057045,-1182.5,0.0001726,2]
[383732341,1757103057055,-2380.8003891,0.00017284,2]
[383732344,1757103057064,-1000.0,0.00017332,2]
[383732345,1757103057074,-1000.0,0.00017332,2]
[383732347,1757103057083,-1000.0,0.0001734,2]
[383732350,1757103057093,-260.026,0.00017348,2]
[383732352,1757103057103,-150.0,0.00017348,2]
[383732353,1757103057112,-150.0,0.00017348,2]
[383732355,1757103057121,-150.0,0.00017348,2]
[383732357,1757103057131,-975.0,0.00017348,2]
[383732359,1757103057141,-2153.0,0.00017348,2]
[383732361,1757103057151,-633.0,0.00017348,2]
[383732363,1757103057160,-3478.43804213,0.00017456,2]
[383732365,1757103057169,-4000.0,0.00017508,2]
[383732367,1757103057179,-600.0,0.00017521,2]
[383732369,1757103057188,-932.14937097,0.00017534,2]
[383732371,1757103057198,-500.0,0.00017534,2]
[383732373,1757103057207,-706.16,0.00017534,2]
[383732375,1757103057217,-482.0,0.00017534,2]
[383732377,1757103057226,-614.49,0.00017534,2]
[383732379,1757103057235,-151.0,0.00017534,2]
[383732381,1757103057244,-151.0,0.00017534,2]
[383732383,1757103057253,-589.91,0.00017534,2]
[383732385,1757103057262,-151.0,0.00017534,2]
[383732387,1757103057271,-151.0,0.00017534,2]
[383732389,1757103057280,-151.0,0.00017534,2]
[383732391,1757103057289,-480.0,0.00017534,2]
[383732393,1757103057299,-695.74,0.00017534,2]
[383732395,1757103057308,-513.79,0.00017534,2]
[383732397,1757103057317,-569.37,0.00017534,2]
[383732399,1757103057327,-818.23,0.00017534,2]
[383732401,1757103057336,-1090.3,0.00017534,2]
[383732403,1757103057346,-2838.89,0.00017534,2]
[383732405,1757103057355,-1570.51,0.00017534,2]
[383732407,1757103057365,-620.07,0.00017534,2]
[383732409,1757103057374,-641.06,0.00017534,2]
[383732411,1757103057383,-480.0,0.00017534,2]
[383732413,1757103057393,-480.0,0.00017534,2]
[383732415,1757103057403,-1179.32,0.00017534,2]
[383732417,1757103057412,-633.15,0.00017534,2]
[383732419,1757103057422,-701.9,0.00017534,2]
[383732421,1757103057431,-777.67,0.00017534,2]
[383732423,1757103057441,-3459.85,0.00017534,2]
[383732425,1757103057451,-666.07,0.00017534,2]
[383732427,1757103057460,-1435.86,0.00017534,2]
[383732429,1757103057470,-687.92,0.00017534,2]
[383732431,1757103057480,-626.27,0.00017534,2]
[383732433,1757103057489,-665.9,0.00017534,2]
[383732435,1757103057498,-640.34,0.00017534,2]
[383732437,1757103057507,-790.66,0.00017534,2]
[383732439,1757103057517,-1666.92,0.00017534,2]
[383732441,1757103057527,-2180.69,0.00017534,2]
[383732443,1757103057537,-7203.67,0.00017534,2]
[383732445,1757103057547,-1225.97,0.00017534,2]
[383732447,1757103057556,-480.0,0.00017534,2]
[383732449,1757103057565,-1428.8,0.00017534,2]
[383732451,1757103057575,-1108.64,0.00017534,2]
[383732453,1757103057584,-865.75,0.00017534,2]
[383732455,1757103057593,-4093.04,0.00017534,2]
[383732466,1757103057603,-534.04,0.00017534,2]
[383732468,1757103057699,-611.61,0.00017534,2]
[383732470,1757103057709,-480.0,0.00017534,2]
[383732472,1757103057719,-555.37,0.00017534,2]
[383732474,1757103057728,-2005.54,0.00017534,2]
[383732476,1757103057737,-695.85,0.00017534,2]
[383732478,1757103057746,-641.0,0.00017534,2]
[383732480,1757103057755,-674.5,0.00017534,2]
[383732482,1757103057764,-2484.53,0.00017534,2]
[383732484,1757103057774,-1101.11,0.00017534,2]
[383732486,1757103057784,-698.74,0.00017534,2]
[383732488,1757103057792,-1021.02,0.00017534,2]
[383732490,1757103057801,-480.0,0.00017534,2]
[383732492,1757103057810,-489.39,0.00017534,2]
[383732494,1757103057819,-499.95,0.00017534,2]
[383732495,1757103057828,-751.81,0.00017534,2]
[383732497,1757103057837,-1850.07,0.00017534,2]
[383732499,1757103057846,-480.0,0.00017534,2]
[383732501,1757103057857,-480.0,0.00017534,2]
[383732504,1757103057868,-689.34,0.00017534,2]
[383732506,1757103057882,-934.43,0.00017534,2]
[383732508,1757103057891,-2351.15,0.00017534,2]
[383732510,1757103057900,-1182.5,0.00017534,2]
[383732512,1757103057909,-360.0,0.0001757,2]
[383732514,1757103057920,-2388.0,0.000177,2]
[383732516,1757103057929,-2500.0,0.00017704,2]
[383732518,1757103057938,-388.4804453,0.00017781,2]
[383732520,1757103057948,-388.4804453,0.00017781,2]
[383732522,1757103057958,-273.6683559,0.00017781,2]
[383732524,1757103057968,-500.0,0.00017808,2]
[383732526,1757103057977,-706.16,0.00017808,2]
[383732528,1757103057987,-482.0,0.00017808,2]
[383732530,1757103057996,-614.49,0.00017808,2]
[383732531,1757103058006,-589.91,0.00017808,2]
[383732533,1757103058015,-480.0,0.00017808,2]
[383732535,1757103058025,-695.74,0.00017808,2]
[383732537,1757103058035,-513.79,0.00017808,2]
[383732539,1757103058045,-569.37,0.00017808,2]
[383732541,1757103058054,-818.23,0.00017808,2]
[383732543,1757103058063,-1090.3,0.00017808,2]
[383732545,1757103058073,-2838.89,0.00017808,2]
[383732547,1757103058082,-1570.51,0.00017808,2]
[383732549,1757103058091,-620.07,0.00017808,2]
[383732551,1757103058101,-641.06,0.00017808,2]
[383732553,1757103058110,-480.0,0.00017808,2]
[383732555,1757103058119,-480.0,0.00017808,2]
[383732557,1757103058129,-1179.32,0.00017808,2]
[383732559,1757103058139,-633.15,0.00017808,2]
[383732561,1757103058148,-701.9,0.00017808,2]
[383732563,1757103058158,-777.67,0.00017808,2]
[383732565,1757103058167,-3459.85,0.00017808,2]
[383732567,1757103058176,-666.07,0.00017808,2]
[383732569,1757103058186,-1435.86,0.00017808,2]
[383732571,1757103058195,-687.92,0.00017808,2]
[383732573,1757103058205,-626.27,0.00017808,2]
[383732575,1757103058215,-665.9,0.00017808,2]
[383732577,1757103058224,-640.34,0.00017808,2]
[383732579,1757103058234,-790.66,0.00017808,2]
[383732581,1757103058243,-1666.92,0.00017808,2]
[383732583,1757103058253,-2180.69,0.00017808,2]
[383732585,1757103058263,-7203.67,0.00017808,2]
[383732587,1757103058272,-1225.97,0.00017808,2]
[383732589,1757103058281,-480.0,0.00017808,2]
[383732591,1757103058291,-1428.8,0.00017808,2]
[383732593,1757103058300,-1108.64,0.00017808,2]
[383732595,1757103058309,-865.75,0.00017808,2]
[383732597,1757103058318,-4093.04,0.00017808,2]
[383732599,1757103058327,-534.04,0.00017808,2]
[383732601,1757103058336,-611.61,0.00017808,2]
[383732603,1757103058346,-480.0,0.00017808,2]
[383732605,1757103058355,-555.37,0.00017808,2]
[383732607,1757103058364,-2005.54,0.00017808,2]
[383732609,1757103058373,-695.85,0.00017808,2]
[383732611,1757103058383,-641.0,0.00017808,2]
[383732613,1757103058391,-674.5,0.00017808,2]
[383732615,1757103058400,-2484.53,0.00017808,2]
[383732617,1757103058409,-1101.11,0.00017808,2]
[383732619,1757103058419,-698.74,0.00017808,2]
[383732621,1757103058428,-1021.02,0.00017808,2]
[383732623,1757103058437,-480.0,0.00017808,2]
[383732625,1757103058446,-489.39,0.00017808,2]
[383732627,1757103058455,-499.95,0.00017808,2]
[383732629,1757103058465,-751.81,0.00017808,2]
[383732631,1757103058474,-1850.07,0.00017808,2]
[383732633,1757103058483,-480.0,0.00017808,2]
[383732635,1757103058492,-480.0,0.00017808,2]
[383732636,1757103058501,-689.34,0.00017808,2]
[383732639,1757103058511,-934.43,0.00017808,2]
[383732641,1757103058520,-2351.15,0.00017808,2]
[383732643,1757103058530,-1182.5,0.00017808,2]
[383732645,1757103058539,-269.5086878,0.00017808,2]
[383732647,1757103058548,-161.5326974,0.00017808,2]
[383732649,1757103058557,-583.2030344,0.00017808,2]
[383732651,1757103058567,-295.2623739,0.00017808,2]
[383732652,1757103058577,-4030.828415,0.00017821,2]
[383732654,1757103058586,-1500.0,0.0001788,2]
[383732656,1757103058595,-1500.0,0.0001788,2]
[383732658,1757103058605,-2044.09388476,0.00017883,7]
[383732660,1757103058614,-663.0,0.00018,2]
[383732662,1757103058623,-594.59413318,0.00018056,2]
[383732665,1757103058633,-300.68993105,0.00018068,2]
[383732667,1757103058643,-500.0,0.00018082,2]
[383732669,1757103058652,-706.16,0.00018082,2]
[383732671,1757103058661,-482.0,0.00018082,2]
[383732673,1757103058671,-614.49,0.00018082,2]
[383732675,1757103058680,-589.91,0.00018082,2]
[383732677,1757103058689,-480.0,0.00018082,2]
[383732679,1757103058700,-695.74,0.00018082,2]
[383732681,1757103058709,-513.79,0.00018082,2]
[383732683,1757103058719,-569.37,0.00018082,2]
[383732685,1757103058729,-818.23,0.00018082,2]
[383732687,1757103058738,-1090.3,0.00018082,2]
[383732689,1757103058748,-2838.89,0.00018082,2]
[383732691,1757103058758,-1570.51,0.00018082,2]
[383732693,1757103058767,-620.07,0.00018082,2]
[383732695,1757103058776,-641.06,0.00018082,2]
[383732697,1757103058785,-551.65801118,0.00018082,2]
[383732699,1757103058794,-480.0,0.00018082,2]
[383732701,1757103058803,-1179.32,0.00018082,2]
[383732703,1757103058813,-633.15,0.00018082,2]
[383732705,1757103058822,-701.9,0.00018082,2]
[383732707,1757103058831,-777.67,0.00018082,2]
[383732709,1757103058839,-3459.85,0.00018082,2]
[383732711,1757103058847,-666.07,0.00018082,2]
[383732713,1757103058856,-1435.86,0.00018082,2]
[383732715,1757103058866,-687.92,0.00018082,2]
[383732717,1757103058880,-626.27,0.00018082,2]
[383732719,1757103058889,-665.9,0.00018082,2]
[383732721,1757103058898,-640.34,0.00018082,2]
[383732723,1757103058908,-790.66,0.00018082,2]
[383732725,1757103058917,-1666.92,0.00018082,2]
[383732727,1757103058927,-2180.69,0.00018082,2]
[383732729,1757103058936,-7203.67,0.00018082,2]
[383732731,1757103058948,-1225.97,0.00018082,2]
[383732733,1757103058958,-480.0,0.00018082,2]
[383732735,1757103058967,-1428.8,0.00018082,2]
[383732737,1757103058977,-1108.64,0.00018082,2]
[383732739,1757103058986,-865.75,0.00018082,2]
[383732741,1757103058997,-4093.04,0.00018082,2]
[383732743,1757103059007,-534.04,0.00018082,2]
[383732744,1757103059016,-611.61,0.00018082,2]
[383732745,1757103059025,-480.0,0.00018082,2]
[383732746,1757103059034,-555.37,0.00018082,2]
[383732747,1757103059043,-2005.54,0.00018082,2]
[383732748,1757103059052,-695.85,0.00018082,2]
[383732749,1757103059061,-641.0,0.00018082,2]
[383732750,1757103059070,-674.5,0.00018082,2]
[383732751,1757103059079,-2484.53,0.00018082,2]
[383732752,1757103059089,-1101.11,0.00018082,2]
[383732753,1757103059098,-698.74,0.00018082,2]
[383732754,1757103059106,-1021.02,0.00018082,2]
[383732755,1757103059116,-480.0,0.00018082,2]
[383732756,1757103059124,-499.95,0.00018082,2]
[383732757,1757103059133,-489.39,0.00018082,2]
[383732758,1757103059143,-751.81,0.00018082,2]
[383732759,1757103059152,-1850.07,0.00018082,2]
[383732760,1757103059160,-480.0,0.00018082,2]
[383732761,1757103059169,-480.0,0.00018082,2]
[383732762,1757103059178,-689.34,0.00018082,2]
[383732763,1757103059187,-934.43,0.00018082,2]
[383732764,1757103059196,-2351.15,0.00018082,2]
[383732765,1757103059206,-1182.5,0.00018082,2]
[383732766,1757103059215,-460.0,0.00018118,2]
[383732767,1757103059224,-201.17999276,0.00018246,2]
[383732769,1757103059235,-3000.0,0.00018252,2]
[383732771,1757103059244,-318.0,0.00018318,2]
[383732773,1757103059254,-500.0,0.00018356,2]
[383732775,1757103059263,-706.16,0.00018356,2]
[383732777,1757103059273,-482.0,0.00018356,2]
[383732779,1757103059282,-614.49,0.00018356,2]
[383732781,1757103059291,-589.91,0.00018356,2]
[383732783,1757103059301,-480.0,0.00018356,2]
[383732785,1757103059310,-695.74,0.00018356,2]
[383732787,1757103059319,-513.79,0.00018356,2]
[383732789,1757103059329,-569.37,0.00018356,2]
[383732791,1757103059339,-818.23,0.00018356,2]
[383732793,1757103059349,-1090.3,0.00018356,2]
[383732795,1757103059358,-2838.89,0.00018356,2]
[383732797,1757103059369,-1570.51,0.00018356,2]
[383732800,1757103059379,-620.07,0.00018356,2]
[383732802,1757103059389,-641.06,0.00018356,2]
[383732813,1757103059399,-480.0,0.00018356,2]
[383732815,1757103059498,-1179.32,0.00018356,2]
[383732817,1757103059508,-633.15,0.00018356,2]
[383732819,1757103059517,-701.9,0.00018356,2]
[383732821,1757103059527,-777.67,0.00018356,2]
[383732823,1757103059536,-3459.85,0.00018356,2]
[383732825,1757103059546,-666.07,0.00018356,2]
[383732827,1757103059555,-1435.86,0.00018356,2]
[383732829,1757103059564,-687.92,0.00018356,2]
[383732831,1757103059574,-626.27,0.00018356,2]
[383732833,1757103059583,-665.9,0.00018356,2]
[383732835,1757103059593,-640.34,0.00018356,2]
[383732837,1757103059602,-790.66,0.00018356,2]
[383732839,1757103059612,-1666.92,0.00018356,2]
[383732841,1757103059623,-2180.69,0.00018356,2]
[383732843,1757103059634,-7203.67,0.00018356,2]
[383732845,1757103059644,-1225.97,0.00018356,2]
[383732847,1757103059654,-150.33,0.00018356,2]
[383732849,1757103059663,-1428.8,0.00018356,2]
[383732851,1757103059674,-1108.64,0.00018356,2]
[383732853,1757103059683,-865.75,0.00018356,2]
[383732855,1757103059692,-4093.04,0.00018356,2]
[383732857,1757103059701,-534.04,0.00018356,2]
[383732859,1757103059713,-611.61,0.00018356,2]
[383732861,1757103059722,-480.0,0.00018356,2]
[383732863,1757103059732,-555.37,0.00018356,2]
[383732865,1757103059741,-2005.54,0.00018356,2]
[383732867,1757103059750,-695.85,0.00018356,2]
[383732869,1757103059759,-641.0,0.00018356,2]
[383732871,1757103059769,-674.5,0.00018356,2]
[383732873,1757103059778,-2484.53,0.00018356,2]
[383732875,1757103059788,-1101.11,0.00018356,2]
[383732877,1757103059797,-698.74,0.00018356,2]
[383732879,1757103059807,-1021.02,0.00018356,2]
[383732881,1757103059816,-480.0,0.00018356,2]
[383732883,1757103059826,-499.95,0.00018356,2]
[383732885,1757103059835,-489.39,0.00018356,2]
[383732887,1757103059844,-751.81,0.00018356,2]
[383732889,1757103059854,-1850.07,0.00018356,2]
[383732891,1757103059864,-480.0,0.00018356,2]
[383732893,1757103059878,-353.88,0.00018356,2]
[383732895,1757103059888,-689.34,0.00018356,2]
[383732897,1757103059898,-934.43,0.00018356,2]
[383732899,1757103059908,-2351.15,0.00018356,2]
[383732902,1757103059919,-1015.65012795,0.00018428,2]
[383732903,1757103059928,-1777.38771516,0.00018428,2]
[383732905,1757103059937,-899.3993897,0.00018458,2]
[383732907,1757103059948,-500.0,0.00018481,2]
[383732910,1757103059959,-349.0,0.00018514,2]
[383732912,1757103059969,-1000.0,0.00018595,20]
[383732914,1757103059980,-500.0,0.0001863,2]
[383732916,1757103059989,-706.16,0.0001863,2]
[383732917,1757103059999,-482.0,0.0001863,2]
[383732919,1757103060009,-614.49,0.0001863,2]
[383732922,1757103060020,-589.91,0.0001863,2]
[383732924,1757103060029,-480.0,0.0001863,2]
[383732926,1757103060039,-695.74,0.0001863,2]
[383732927,1757103060048,-513.79,0.0001863,2]
[383732929,1757103060058,-569.37,0.0001863,2]
[383732931,1757103060068,-818.23,0.0001863,2]
[383732933,1757103060078,-1090.3,0.0001863,2]
[383732935,1757103060088,-2838.89,0.0001863,2]
[383732937,1757103060098,-1570.51,0.0001863,2]
[383732939,1757103060108,-620.07,0.0001863,2]
[383732941,1757103060120,-641.06,0.0001863,2]
[383732943,1757103060132,-480.0,0.0001863,2]
[383732945,1757103060142,-1179.32,0.0001863,2]
[383732948,1757103060153,-633.15,0.0001863,2]
[383732950,1757103060162,-701.9,0.0001863,2]
[383732951,1757103060172,-777.67,0.0001863,2]
[383732953,1757103060182,-3459.85,0.0001863,2]
[383732955,1757103060192,-666.07,0.0001863,2]